[Event "DVM U12w 2023"]
[Site "Magdeburg"]
[Date "2023.12.28"]
[Round "3"]
[White "Rätsch, Elina"]
[Black "Wieckowicz, Bui Ha My"]
[Result "1-0"]
[WhiteElo "869"]
[BlackElo "940"]
[PlyCount "111"]
[EventDate "2022.12.27"]
[EventType "team-tourn"]
[EventRounds "7"]
[EventCountry "GER"]
[TimeControl "40/5400+30:1800+30"]
[WhiteClock "1:06:57"]
[BlackClock "0:06:12"]

1. d4 {[%emt 0:00:02]} f5 {[%emt 0:00:03]} 2. e3 {[%emt 0:00:33]} Nf6 {[%emt 0:00:09]} 3. Nf3 {[%emt 0:00:33]} e6 {[%emt 0:00:27]} 4. Bd3 {[%emt 0:00:29]} d6 {[%emt 0:03:06]} 5. O-O {[%emt 0:00:36]} b6 {[%emt 0:03:14]} 6. Nbd2 {[%emt 0:00:54]} Bb7 {[%emt 0:01:53]} 7. Re1 {[%emt 0:00:43]} d5 {[%emt 0:02:26]} 8. Ne5 {[%emt 0:00:58]} Bd6 {[%emt 0:05:42]} 9. Ndf3 {[%emt 0:01:08]} Nbd7 {[%emt 0:03:02]} 10. Bd2 {[%emt 0:02:08]} O-O {[%emt 0:03:10]} 11. Qe2 {[%emt 0:00:26]} Rb8 {[%emt 0:08:02]} 12. c4 {[%emt 0:02:19]} c6 {[%emt 0:00:52]} 13. Ng5 {[%emt 0:01:45]} Nxe5 {[%emt 0:00:46]} 14. Nxe6 {[%emt 0:00:36]} Qe7 {[%emt 0:01:58]} 15. Nxf8 {[%emt 0:00:54]} Rxf8 {[%emt 0:00:08]} 16. dxe5 {[%emt 0:00:17]} Bxe5 {[%emt 0:00:10]} 17. Bc3 {[%emt 0:00:56]} Bxc3 {[%emt 0:02:28]} 18. bxc3 {[%emt 0:00:19]} Re8 {[%emt 0:04:42]} 19. Bxf5 {[%emt 0:01:55]} Qe5 {[%emt 0:06:59]} 20. Qd3 {[%emt 0:01:23]} a6 {[%emt 0:05:26]} 21. Rab1 {[%emt 0:01:31]} b5 {[%emt 0:01:27]} 22. a4 {[%emt 0:00:54]} Re7 {[%emt 0:06:51]} 23. cxb5 {[%emt 0:00:34]} axb5 {[%emt 0:01:29]} 24. axb5 {[%emt 0:00:59]} cxb5 {[%emt 0:00:17]} 25. Rxb5 {[%emt 0:00:34]} Ba6 {[%emt 0:00:16]} 26. Rb8+ {[%emt 0:02:24]} Qxb8 {[%emt 0:00:19]} 27. Qxa6 {[%emt 0:00:27]} Qe5 {[%emt 0:08:20]} 28. Bd3 {[%emt 0:03:58]} Qxc3 {[%emt 0:00:19]} 29. Rb1 {[%emt 0:02:35]} Nd7 {[%emt 0:00:36]} 30. Bb5 {[%emt 0:02:15]} Nb8 {[%emt 0:02:13]} 31. Qd6 {[%emt 0:00:50]} Rf7 {[%emt 0:02:20]} 32. Qxb8+ {[%emt 0:00:53]} Rf8 {[%emt 0:00:05]} 33. Qd6 {[%emt 0:00:38]} Qc2 {[%emt 0:04:10]} 34. Qb4 {[%emt 0:02:16]} Qxf2+ {[%emt 0:00:24]} 35. Kh1 {[%emt 0:00:26]} Qxe3 {[%emt 0:02:11]} 36. Re1 {[%emt 0:02:12]} Qa7 {[%emt 0:03:24]} 37. Bc6 {[%emt 0:00:43]} Qa2 {[%emt 0:03:33]} 38. h3 {[%emt 0:00:44]} h6 {[%emt 0:01:22]} 39. Rd1 {[%emt 0:01:06]} Rf2 {[%emt 0:02:32]} 40. Bxd5+ {[%emt 0:01:03]} Qxd5 {[%emt 0:00:53]} 41. Rxd5 {[%emt 0:30:14]} Rf1+ {[%emt 0:31:05]} 42. Kh2 {[%emt 0:00:20]} Rf8 {[%emt 0:06:58]} 43. Qc4 {[%emt 0:01:03]} Kh8 {[%emt 0:02:05]} 44. Qd4 {[%emt 0:00:53]} Kg8 {[%emt 0:01:05]} 45. Rd8 {[%emt 0:00:27]} h5 {[%emt 0:01:13]} 46. Rxf8+ {[%emt 0:00:19]} Kxf8 {[%emt 0:00:09]} 47. Qf4+ {[%emt 0:00:25]} Kg8 {[%emt 0:00:08]} 48. Qg5 {[%emt 0:00:17]} g6 {[%emt 0:00:21]} 49. Qxg6+ {[%emt 0:00:14]} Kf8 {[%emt 0:00:17]} 50. Qh7 {[%emt 0:00:10]} Ke8 {[%emt 0:00:07]} 51. Kg3 {[%emt 0:00:07]} Kd8 {[%emt 0:00:03]} 52. Kf4 {[%emt 0:00:07]} Kc8 {[%emt 0:00:12]} 53. Ke5 {[%emt 0:00:07]} Kb8 {[%emt 0:00:09]} 54. Kd6 {[%emt 0:00:05]} Ka8 {[%emt 0:00:08]} 55. Kc6 {[%emt 0:00:09]} Kb8 {[%emt 0:00:04]} 56. Qb7# {[%emt 0:00:40] normal} 1-0

[Event "DVM U12w 2023"]
[Site "Magdeburg"]
[Date "2023.12.28"]
[Round "3"]
[White "Seyedfakhari, Elena"]
[Black "Wilke, Ronja"]
[Result "0-1"]
[WhiteElo "860"]
[BlackElo "1224"]
[PlyCount "40"]
[EventDate "2022.12.27"]
[EventType "team-tourn"]
[EventRounds "7"]
[EventCountry "GER"]
[TimeControl "40/5400+30:1800+30"]
[WhiteClock "1:32:12"]
[BlackClock "1:19:10"]

1. e4 {[%emt 0:00:02]} c6 {[%emt 0:00:07]} 2. Nc3 {[%emt 0:00:00]} d5 {[%emt 0:00:00]} 3. exd5 {[%emt 0:00:11]} cxd5 {[%emt 0:00:00]} 4. d4 {[%emt 0:00:09]} Nc6 {[%emt 0:00:05]} 5. Bb5 {[%emt 0:00:15]} Nf6 {[%emt 0:00:37]} 6. Bf4 {[%emt 0:00:15]} Bd7 {[%emt 0:04:02]} 7. Nf3 {[%emt 0:00:41]} a6 {[%emt 0:01:53]} 8. Ba4 {[%emt 0:00:17]} b5 {[%emt 0:01:11]} 9. Bb3 {[%emt 0:00:18]} Bg4 {[%emt 0:00:43]} 10. h3 {[%emt 0:00:18]} Bxf3 {[%emt 0:00:32]} 11. Qxf3 {[%emt 0:00:11]} Nxd4 {[%emt 0:01:01]} 12. Qxd5 {[%emt 0:00:51]} Nxd5 {[%emt 0:02:10]} 13. Nxd5 {[%emt 0:00:13]} Rc8 {[%emt 0:05:30]} 14. c3 {[%emt 0:00:43]} Nxb3 {[%emt 0:00:55]} 15. axb3 {[%emt 0:00:22]} Qxd5 {[%emt 0:00:40]} 16. b4 {[%emt 0:00:27]} Qxg2 {[%emt 0:00:30]} 17. Rh2 {[%emt 0:00:34]} Qg1+ {[%emt 0:00:15]} 18. Ke2 {[%emt 0:00:39]} Qxa1 {[%emt 0:00:15]} 19. Kd3 {[%emt 0:01:29]} Rd8+ {[%emt 0:00:36]} 20. Kc2 {[%emt 0:00:23]} Qd1# {[%emt 0:00:18] normal} 0-1

[Event "DVM U12w 2023"]
[Site "Magdeburg"]
[Date "2023.12.28"]
[Round "3"]
[White "Satheesh, Yazhini"]
[Black "Roessler, Helena"]
[Result "1-0"]
[WhiteElo "859"]
[BlackElo "1060"]
[PlyCount "163"]
[EventDate "2022.12.27"]
[EventType "team-tourn"]
[EventRounds "7"]
[EventCountry "GER"]
[TimeControl "40/5400+30:1800+30"]
[WhiteClock "1:08:19"]
[BlackClock "0:44:01"]

1. e4 {[%emt 0:00:03]} c5 {[%emt 0:00:08]} 2. Nc3 {[%emt 0:00:13]} Nc6 {[%emt 0:00:12]} 3. Nf3 {[%emt 0:00:29]} e6 {[%emt 0:00:24]} 4. Bb5 {[%emt 0:00:33]} d5 {[%emt 0:00:34]} 5. e5 {[%emt 0:01:16]} Bd7 {[%emt 0:00:32]} 6. d3 {[%emt 0:00:39]} Nge7 {[%emt 0:00:41]} 7. Bf4 {[%emt 0:00:39]} Nf5 {[%emt 0:00:58]} 8. O-O {[%emt 0:00:42]} Be7 {[%emt 0:00:17]} 9. Qd2 {[%emt 0:00:57]} O-O {[%emt 0:00:16]} 10. Bg5 {[%emt 0:01:14]} Bxg5 {[%emt 0:01:06]} 11. Qxg5 {[%emt 0:01:20]} Qxg5 {[%emt 0:00:34]} 12. Nxg5 {[%emt 0:00:17]} Nxe5 {[%emt 0:00:17]} 13. Bxd7 {[%emt 0:00:59]} Nxd7 {[%emt 0:00:14]} 14. Rfe1 {[%emt 0:02:00]} Nd4 {[%emt 0:01:15]} 15. Rac1 {[%emt 0:01:02]} Nb6 {[%emt 0:06:15]} 16. b3 {[%emt 0:02:58]} Rac8 {[%emt 0:04:03]} 17. Ne2 {[%emt 0:01:08]} Nb5 {[%emt 0:05:54]} 18. c4 {[%emt 0:03:52]} dxc4 {[%emt 0:05:25]} 19. dxc4 {[%emt 0:00:50]} Nd6 {[%emt 0:04:28]} 20. Red1 {[%emt 0:01:13]} Nf5 {[%emt 0:00:09]} 21. Nf3 {[%emt 0:02:08]} Rcd8 {[%emt 0:01:07]} 22. Re1 {[%emt 0:01:26]} Rd6 {[%emt 0:00:49]} 23. Nc3 {[%emt 0:00:57]} Nd4 {[%emt 0:01:53]} 24. Ng5 {[%emt 0:01:25]} Rfd8 {[%emt 0:01:19]} 25. Nge4 {[%emt 0:03:04]} R6d7 {[%emt 0:02:26]} 26. Nxc5 {[%emt 0:00:47]} Rc7 {[%emt 0:01:51]} 27. N5e4 {[%emt 0:02:13]} h6 {[%emt 0:02:34]} 28. Red1 {[%emt 0:01:08]} e5 {[%emt 0:03:11]} 29. Kf1 {[%emt 0:02:50]} Nd7 {[%emt 0:04:34]} 30. Nd5 {[%emt 0:01:02]} Rc5 {[%emt 0:05:11]} 31. Nxc5 {[%emt 0:00:14]} Nxc5 {[%emt 0:00:03]} 32. f4 {[%emt 0:02:01]} f6 {[%emt 0:03:25]} 33. g3 {[%emt 0:02:43]} Ne4 {[%emt 0:04:51]} 34. Nc3 {[%emt 0:02:30]} Nc5 {[%emt 0:04:26]} 35. Ne2 {[%emt 0:01:21]} Nce6 {[%emt 0:00:27]} 36. Nxd4 {[%emt 0:00:33]} Nxd4 {[%emt 0:00:08]} 37. Kf2 {[%emt 0:01:15]} b6 {[%emt 0:02:48]} 38. c5 {[%emt 0:00:41]} bxc5 {[%emt 0:01:14]} 39. Rxc5 {[%emt 0:00:15]} Rd7 {[%emt 0:00:11]} 40. fxe5 {[%emt 0:00:30]} fxe5 {[%emt 0:00:47]} 41. Rxe5 {[%emt 0:30:14]} Rf7+ {[%emt 0:30:05]} 42. Kg2 {[%emt 0:00:21]} Nf3 {[%emt 0:02:11]} 43. Re8+ {[%emt 0:00:33]} Kh7 {[%emt 0:00:20]} 44. Rf1 {[%emt 0:00:15]} Ng5 {[%emt 0:00:14]} 45. Rxf7 {[%emt 0:00:15]} Nxf7 {[%emt 0:00:02]} 46. Re7 {[%emt 0:00:24]} Nd6 {[%emt 0:01:15]} 47. Rxa7 {[%emt 0:00:20]} Nb5 {[%emt 0:00:00]} 48. Ra8 {[%emt 0:01:01]} Nc3 {[%emt 0:00:12]} 49. a4 {[%emt 0:00:19]} Nd5 {[%emt 0:00:04]} 50. a5 {[%emt 0:00:09]} Nc7 {[%emt 0:00:21]} 51. Rc8 {[%emt 0:00:34]} Na6 {[%emt 0:00:06]} 52. Rc6 {[%emt 0:00:31]} Nb4 {[%emt 0:00:08]} 53. Re6 {[%emt 0:00:16]} Nd5 {[%emt 0:00:27]} 54. Rd6 {[%emt 0:00:44]} Nc7 {[%emt 0:00:07]} 55. a6 {[%emt 0:00:16]} Nb5 {[%emt 0:00:18]} 56. Rd7 {[%emt 0:00:22]} Kg6 {[%emt 0:00:25]} 57. a7 {[%emt 0:00:30]} Nxa7 {[%emt 0:00:04]} 58. Rxa7 {[%emt 0:00:08]} Kf6 {[%emt 0:00:05]} 59. Ra1 {[%emt 0:00:12]} Ke5 {[%emt 0:00:08]} 60. b4 {[%emt 0:00:25]} Kd5 {[%emt 0:00:06]} 61. Rb1 {[%emt 0:00:39]} Kc6 {[%emt 0:00:10]} 62. b5+ {[%emt 0:00:05]} Kb6 {[%emt 0:00:07]} 63. Kf3 {[%emt 0:00:08]} g5 {[%emt 0:00:19]} 64. h4 {[%emt 0:00:10]} gxh4 {[%emt 0:00:11]} 65. gxh4 {[%emt 0:00:08]} h5 {[%emt 0:00:25]} 66. Kf4 {[%emt 0:00:04]} Kb7 {[%emt 0:00:07]} 67. Kg5 {[%emt 0:00:05]} Kb6 {[%emt 0:00:05]} 68. Kxh5 {[%emt 0:00:07]} Kb7 {[%emt 0:00:18]} 69. Kg6 {[%emt 0:00:42]} Kb6 {[%emt 0:00:08]} 70. h5 {[%emt 0:00:05]} Kb7 {[%emt 0:00:04]} 71. h6 {[%emt 0:00:05]} Kb6 {[%emt 0:00:05]} 72. h7 {[%emt 0:00:04]} Kb7 {[%emt 0:00:05]} 73. h8=Q {[%emt 0:00:07]} Kb6 {[%emt 0:00:03]} 74. Qb8+ {[%emt 0:00:12]} Kc5 {[%emt 0:00:14]} 75. Rc1+ {[%emt 0:00:03]} Kd4 {[%emt 0:00:15]} 76. Qd8+ {[%emt 0:00:07]} Ke4 {[%emt 0:00:05]} 77. Re1+ {[%emt 0:00:05]} Kf4 {[%emt 0:00:06]} 78. Qf8+ {[%emt 0:00:12]} Kg3 {[%emt 0:00:12]} 79. Rf1 {[%emt 0:00:16]} Kg2 {[%emt 0:00:08]} 80. Rf5 {[%emt 0:00:16]} Kg3 {[%emt 0:00:09]} 81. Rg5+ {[%emt 0:00:10]} Kh4 {[%emt 0:00:08]} 82. Qh8# {[%emt 0:00:05] normal} 1-0

[Event "DVM U12w 2023"]
[Site "Magdeburg"]
[Date "2023.12.28"]
[Round "3"]
[White "Scharfenberg, Leah"]
[Black "Rempel, Katharina"]
[Result "0-1"]
[WhiteElo "755"]
[BlackElo "867"]
[PlyCount "108"]
[EventDate "2022.12.27"]
[EventType "team-tourn"]
[EventRounds "7"]
[EventCountry "GER"]
[TimeControl "40/5400+30:1800+30"]
[WhiteClock "1:23:02"]
[BlackClock "1:23:14"]

1. e4 {[%emt 0:00:06]} e5 {[%emt 0:00:07]} 2. Nf3 {[%emt 0:00:02]} Nc6 {[%emt 0:00:08]} 3. d4 {[%emt 0:00:06]} d6 {[%emt 0:00:58]} 4. dxe5 {[%emt 0:03:10]} dxe5 {[%emt 0:00:16]} 5. Qxd8+ {[%emt 0:00:08]} Nxd8 {[%emt 0:00:12]} 6. Nxe5 {[%emt 0:00:10]} Bc5 {[%emt 0:01:11]} 7. Bc4 {[%emt 0:00:42]} Nf6 {[%emt 0:00:40]} 8. O-O {[%emt 0:00:19]} Nc6 {[%emt 0:01:41]} 9. Nxf7 {[%emt 0:01:55]} Rf8 {[%emt 0:00:40]} 10. Ng5 {[%emt 0:00:33]} Nd4 {[%emt 0:01:15]} 11. Nc3 {[%emt 0:00:48]} Nxc2 {[%emt 0:00:22]} 12. Rb1 {[%emt 0:00:17]} Bd7 {[%emt 0:00:37]} 13. Bf4 {[%emt 0:00:35]} O-O-O {[%emt 0:01:55]} 14. e5 {[%emt 0:00:51]} Ng4 {[%emt 0:01:06]} 15. Bg3 {[%emt 0:04:02]} Bc6 {[%emt 0:03:38]} 16. Ne6 {[%emt 0:01:44]} Rfe8 17. Nxd8 Rxd8 18. Be6+ Bd7 19. Bxg4 Bxg4 20. Bh4 Rd2 21. Rbc1 Nb4 22. Rce1 Nd3 23. Re4 Bf5 24. e6 Bxe4 25. Nxe4 Rc2 26. e7 Kd7 27. Rd1 Bxe7 28. Rxd3+ Ke8 29. Bxe7 Kxe7 30. g4 Rxb2 31. Ng5 Rxa2 32. Re3+ Kd7 33. Rf3 Ra1+ 34. Kg2 a5 35. Rf7+ Kc6 36. Rxg7 a4 37. Rxh7 a3 38. Rh6+ Kb5 39. Ne4 a2 40. g5 {[%emt 0:12:00]} Rb1 41. Nc3+ {[%emt 0:30:30]} Kc4 42. Nxb1 {[%emt 0:00:30]} a1=Q 43. Nd2+ {[%emt 0:00:30]} Kc3 44. Ne4+ {[%emt 0:00:30]} Kb4 45. g6 {[%emt 0:00:30]} Qg7 46. Rh3 {[%emt 0:00:30]} Qxg6+ 47. Ng3 {[%emt 0:00:30]} c5 48. Rh4+ {[%emt 0:00:30]} Kb5 49. Rf4 {[%emt 0:00:30]} c4 50. h4 {[%emt 0:00:30]} c3 51. h5 {[%emt 0:00:30]} Qc6+ {[%emt 0:48:12] Rh4 c2+} 52. f3 {[%emt 0:00:30] c1=Q Rh1 Q6c2+ Kh3 Qe3 Rh2 Qcd3 Re2} Qxf3+ {[%emt 0:00:30] Rb2+ Kc5 Rg2 Qde3} 53. Kh2 {[%emt 0:00:30]} Qg4 54. h6 {[%emt 0:00:30]} Qh4+ {normal} 0-1

[Event "DVM U12w 2023"]
[Site "Magdeburg"]
[Date "2023.12.28"]
[Round "3"]
[White "Sauermann, Paula"]
[Black "Satheesh, Dharshini"]
[Result "0-1"]
[WhiteElo "754"]
[BlackElo "871"]
[PlyCount "32"]
[EventDate "2022.12.27"]
[EventType "team-tourn"]
[EventRounds "7"]
[EventCountry "GER"]
[TimeControl "40/5400+30:1800+30"]
[WhiteClock "1:09:03"]
[BlackClock "1:30:39"]

1. e4 {[%emt 0:00:02]} e5 {[%emt 0:00:11]} 2. Nf3 {[%emt 0:00:06]} Nc6 {[%emt 0:00:09]} 3. Bc4 {[%emt 0:00:11]} Bc5 {[%emt 0:00:20]} 4. Nc3 {[%emt 0:00:27]} Nf6 {[%emt 0:00:30]} 5. d3 {[%emt 0:00:25]} d6 {[%emt 0:00:23]} 6. Bg5 {[%emt 0:00:13]} h6 {[%emt 0:00:18]} 7. Bxf6 {[%emt 0:00:25]} Qxf6 {[%emt 0:00:47]} 8. Nb5 {[%emt 0:01:16]} Bb6 {[%emt 0:00:49]} 9. O-O {[%emt 0:01:44]} O-O {[%emt 0:00:30]} 10. Qe2 {[%emt 0:04:31]} Bg4 {[%emt 0:00:48]} 11. Rad1 {[%emt 0:03:00]} a6 {[%emt 0:01:01]} 12. Nc3 {[%emt 0:01:55]} Nd4 {[%emt 0:00:25]} 13. Qe3 {[%emt 0:05:23]} Nxf3+ {[%emt 0:00:09]} 14. Kh1 {[%emt 0:04:29]} Bxe3 {[%emt 0:00:09]} 15. Nd5 {[%emt 0:01:36]} Qh4 {[%emt 0:01:08]} 16. g3 {[%emt 0:03:44]} Qxh2# {[%emt 0:00:14] normal} 0-1

[Event "DVM U12w 2023"]
[Site "Magdeburg"]
[Date "2023.12.28"]
[Round "3"]
[White "Özdemir, Anna Valentina"]
[Black "Becker, Emma"]
[Result "1-0"]
[WhiteElo "693"]
[BlackElo "748"]
[PlyCount "59"]
[EventDate "2022.12.27"]
[EventType "team-tourn"]
[EventRounds "7"]
[EventCountry "GER"]
[TimeControl "40/5400+30:1800+30"]
[WhiteClock "1:33:30"]
[BlackClock "1:13:01"]

1. e4 {[%emt 0:00:03]} e5 {[%emt 0:00:12]} 2. Nf3 {[%emt 0:00:04]} Nc6 {[%emt 0:00:18]} 3. d4 {[%emt 0:00:13]} d6 {[%emt 0:00:24]} 4. Bc4 {[%emt 0:00:10]} Be6 {[%emt 0:01:26]} 5. d5 {[%emt 0:00:12]} Bd7 {[%emt 0:00:56]} 6. dxc6 {[%emt 0:00:14]} Bxc6 {[%emt 0:00:24]} 7. Bg5 {[%emt 0:00:18]} Qd7 {[%emt 0:01:36]} 8. Nc3 {[%emt 0:00:28]} f6 {[%emt 0:01:01]} 9. Bd2 {[%emt 0:00:47]} Ne7 {[%emt 0:02:10]} 10. O-O {[%emt 0:00:15]} d5 {[%emt 0:00:47]} 11. exd5 {[%emt 0:00:42]} Bxd5 {[%emt 0:00:11]} 12. Bb5 {[%emt 0:00:28]} c6 {[%emt 0:01:47]} 13. Be2 {[%emt 0:00:29]} Be6 {[%emt 0:02:03]} 14. Bd3 {[%emt 0:00:29]} Bh3 {[%emt 0:00:46]} 15. gxh3 {[%emt 0:00:35]} Nc8 {[%emt 0:01:02]} 16. Qe2 {[%emt 0:00:55]} h5 {[%emt 0:02:18]} 17. Bg6+ {[%emt 0:00:24]} Ke7 {[%emt 0:00:37]} 18. Be3 {[%emt 0:00:40]} Rh6 {[%emt 0:00:42]} 19. Bxh6 {[%emt 0:00:17]} gxh6 {[%emt 0:00:51]} 20. Rad1 {[%emt 0:00:04]} Qe6 {[%emt 0:00:42]} 21. Bxh5 {[%emt 0:00:31]} Qg8+ {[%emt 0:00:37]} 22. Bg4 {[%emt 0:00:32]} f5 {[%emt 0:03:07]} 23. Qxe5+ {[%emt 0:00:23]} Qe6 {[%emt 0:01:17]} 24. Qc5+ {[%emt 0:00:16]} Ke8 {[%emt 0:00:38]} 25. Bh5+ {[%emt 0:00:18]} Qf7 {[%emt 0:00:36]} 26. Bxf7+ {[%emt 0:00:23]} Kxf7 {[%emt 0:00:13]} 27. Rd7+ {[%emt 0:00:11]} Ke8 {[%emt 0:02:20]} 28. Qxf5 {[%emt 0:00:58]} Nd6 {[%emt 0:02:28]} 29. Re1+ {[%emt 0:00:11]} Be7 {[%emt 0:00:32]} 30. Rexe7# {[%emt 0:00:30] normal} 1-0

[Event "DVM U12w 2023"]
[Site "Magdeburg"]
[Date "2023.12.28"]
[Round "4"]
[White "Schirmbeck, Lilian"]
[Black "Ruddat, Maila"]
[Result "1-0"]
[WhiteElo "1585"]
[BlackElo "1187"]
[PlyCount "59"]
[EventDate "2022.12.27"]
[EventType "team-tourn"]
[EventRounds "7"]
[EventCountry "GER"]
[TimeControl "40/5400+30:1800+30"]
[WhiteClock "0:36:30"]
[BlackClock "1:01:32"]

1. e4 {[%emt 0:00:02]} e5 {[%emt 0:00:12]} 2. Nf3 {[%emt 0:00:05]} Nc6 {[%emt 0:00:28]} 3. Nc3 {[%emt 0:00:04]} Nf6 {[%emt 0:00:15]} 4. d4 {[%emt 0:00:03]} exd4 {[%emt 0:00:58]} 5. Nd5 {[%emt 0:00:35]} Nxd5 {[%emt 0:02:56]} 6. exd5 {[%emt 0:00:05]} Ne7 {[%emt 0:00:29]} 7. d6 {[%emt 0:03:58]} cxd6 {[%emt 0:01:13]} 8. Qxd4 {[%emt 0:05:49]} Nc6 {[%emt 0:00:43]} 9. Qg4 {[%emt 0:02:49]} b6 {[%emt 0:00:43]} 10. Be2 {[%emt 0:02:17]} Bb7 {[%emt 0:00:59]} 11. Bg5 {[%emt 0:01:07]} Be7 {[%emt 0:00:44]} 12. Bxe7 {[%emt 0:01:07]} Qxe7 {[%emt 0:00:41]} 13. O-O-O {[%emt 0:00:17]} O-O {[%emt 0:01:30]} 14. Rhe1 {[%emt 0:00:56]} Qf6 {[%emt 0:02:36]} 15. Qxd7 {[%emt 0:01:19]} Rab8 {[%emt 0:02:02]} 16. Qxd6 {[%emt 0:05:22]} Qf5 {[%emt 0:03:09]} 17. Bd3 {[%emt 0:03:30]} Qa5 {[%emt 0:01:11]} 18. a3 {[%emt 0:02:29]} Qh5 {[%emt 0:04:07]} 19. Re4 {[%emt 0:07:26]} Rbd8 {[%emt 0:02:25]} 20. Qg3 {[%emt 0:01:53]} Qh6+ {[%emt 0:03:32]} 21. Kb1 {[%emt 0:00:18]} Rfe8 {[%emt 0:01:59]} 22. Rh4 {[%emt 0:01:34]} Qf6 {[%emt 0:00:40]} 23. Bxh7+ {[%emt 0:00:57]} Kf8 {[%emt 0:00:50]} 24. Bd3 {[%emt 0:00:57]} g6 {[%emt 0:01:02]} 25. Qh3 {[%emt 0:04:21]} Ke7 {[%emt 0:03:26]} 26. Re4+ {[%emt 0:05:08]} Kd6 {[%emt 0:03:48]} 27. Rxe8 {[%emt 0:13:15]} Rxe8 {[%emt 0:00:20]} 28. Ba6+ {[%emt 0:00:10]} Kc7 {[%emt 0:00:18]} 29. Qd7+ {[%emt 0:00:15]} Kb8 {[%emt 0:00:12]} 30. Qxb7# {[%emt 0:00:52] normal} 1-0

[Event "DVM U12w 2023"]
[Site "Magdeburg"]
[Date "2023.12.28"]
[Round "4"]
[White "Rafikova, Ailin"]
[Black "Will, Elina"]
[Result "1/2-1/2"]
[WhiteElo "1399"]
[BlackElo "1325"]
[PlyCount "45"]
[EventDate "2022.12.27"]
[EventType "team-tourn"]
[EventRounds "7"]
[EventCountry "GER"]
[TimeControl "40/5400+30:1800+30"]
[WhiteClock "0:19:15"]
[BlackClock "1:22:34"]

1. e4 {[%emt 0:00:04]} e6 {[%emt 0:00:04]} 2. d4 {[%emt 0:00:41]} d5 {[%emt 0:00:04]} 3. Nd2 {[%emt 0:00:53]} Nf6 {[%emt 0:00:12]} 4. e5 {[%emt 0:00:28]} Nfd7 {[%emt 0:00:08]} 5. Bd3 {[%emt 0:01:33]} c5 {[%emt 0:00:08]} 6. c3 {[%emt 0:00:41]} Nc6 {[%emt 0:00:03]} 7. Ne2 {[%emt 0:07:33]} a6 {[%emt 0:02:13]} 8. f4 {[%emt 0:04:24]} Qb6 {[%emt 0:00:11]} 9. Nf3 {[%emt 0:01:52]} Be7 {[%emt 0:01:57]} 10. O-O {[%emt 0:01:40]} f6 {[%emt 0:00:22]} 11. exf6 {[%emt 0:05:45]} Bxf6 {[%emt 0:02:21]} 12. Bb1 {[%emt 0:06:04]} O-O {[%emt 0:05:01]} 13. Qd3 {[%emt 0:02:09]} g6 {[%emt 0:00:06]} 14. Kh1 {[%emt 0:02:32]} Bg7 {[%emt 0:00:31]} 15. Ng5 {[%emt 0:04:04]} Re8 {[%emt 0:01:10]} 16. Qh3 {[%emt 0:05:41]} Nf6 {[%emt 0:00:18]} 17. dxc5 {[%emt 0:02:47]} Qxc5 {[%emt 0:00:12]} 18. Qe3 {[%emt 0:09:52]} Qxe3 {[%emt 0:01:06]} 19. Bxe3 {[%emt 0:00:05]} Ng4 {[%emt 0:00:25]} 20. Bc5 {[%emt 0:07:56]} e5 {[%emt 0:00:34]} 21. h3 {[%emt 0:02:37]} Nf6 {[%emt 0:00:26]} 22. Nf3 {[%emt 0:08:15]} Nh5 {[%emt 0:01:24]} 23. fxe5 {[%emt 0:05:09] normal} 1/2-1/2

[Event "DVM U12w 2023"]
[Site "Magdeburg"]
[Date "2023.12.28"]
[Round "4"]
[White "John, Linnea"]
[Black "Shynkar, Daria"]
[Result "1-0"]
[WhiteElo "1393"]
[BlackElo "1316"]
[PlyCount "61"]
[EventDate "2022.12.27"]
[EventType "team-tourn"]
[EventRounds "7"]
[EventCountry "GER"]
[TimeControl "40/5400+30:1800+30"]
[WhiteClock "0:13:18"]
[BlackClock "0:15:20"]

1. e4 {[%emt 0:00:04]} c5 {[%emt 0:00:03]} 2. Nf3 {[%emt 0:00:05]} a6 {[%emt 0:00:05]} 3. d4 {[%emt 0:01:00]} cxd4 {[%emt 0:00:06]} 4. Nxd4 {[%emt 0:00:08]} Nf6 {[%emt 0:00:06]} 5. Nc3 {[%emt 0:00:28]} e5 {[%emt 0:00:06]} 6. Nf3 {[%emt 0:01:35]} Bb4 {[%emt 0:00:05]} 7. Bd2 {[%emt 0:07:08]} d6 {[%emt 0:00:52]} 8. Bd3 {[%emt 0:00:46]} O-O {[%emt 0:01:47]} 9. h3 {[%emt 0:02:28]} Nbd7 {[%emt 0:03:18]} 10. O-O {[%emt 0:01:57]} Nc5 {[%emt 0:03:54]} 11. Re1 {[%emt 0:09:16]} Nxd3 {[%emt 0:16:46]} 12. cxd3 {[%emt 0:00:26]} Bc5 {[%emt 0:01:09]} 13. Bg5 {[%emt 0:04:01]} Qb6 {[%emt 0:09:22]} 14. Qc2 {[%emt 0:13:40]} Nd7 {[%emt 0:03:42]} 15. Nd5 {[%emt 0:03:02]} Qa7 {[%emt 0:07:52]} 16. Nc7 {[%emt 0:04:15]} f6 {[%emt 0:03:28]} 17. Nxa8 {[%emt 0:03:02]} Qxa8 {[%emt 0:01:14]} 18. Be3 {[%emt 0:02:20]} Bxe3 {[%emt 0:00:49]} 19. Rxe3 {[%emt 0:00:26]} Qb8 {[%emt 0:05:16]} 20. Rc1 {[%emt 0:04:59]} Nc5 {[%emt 0:08:22]} 21. b4 {[%emt 0:02:34]} Ne6 {[%emt 0:02:38]} 22. Qb3 {[%emt 0:05:45]} Kh8 {[%emt 0:00:55]} 23. Re2 {[%emt 0:05:07]} f5 {[%emt 0:04:20]} 24. exf5 {[%emt 0:04:47]} Rxf5 {[%emt 0:00:13]} 25. Rec2 {[%emt 0:00:09]} Bd7 {[%emt 0:01:30]} 26. Qc4 {[%emt 0:03:29]} b5 {[%emt 0:01:37]} 27. Qe4 {[%emt 0:03:22]} Rf4 {[%emt 0:01:43]} 28. Qe3 {[%emt 0:00:38]} Rf5 {[%emt 0:04:20]} 29. d4 {[%emt 0:03:44]} exd4 {[%emt 0:00:41]} 30. Nxd4 {[%emt 0:00:34]} Nxd4 {[%emt 0:03:51]} 31. Rc8+ {[%emt 0:01:27] normal} 1-0